Cogmind - Beta 15 @@@ ROGUE MODE // 2025.07.27 @ 15:57:52 Player: rei Result: Destroyed by S-10 Pest with Light Assault Rifle Performance ------------- Evolutions (1) 500 Regions Visited (2) 400 Robots Destroyed (7) 35 Value Destroyed (264) 264 Prototype IDs (0) 0 Alien Tech Used (0) 0 Bonus (0) 0 TOTAL SCORE: 1199 Bonus ------- None Cogmind --------- Core Integrity 0/400 Matter 296/300 Energy 100/100 System Corruption 0% Temperature Cool (0) Movement Core (200) Ox3 Location -9/Materials Parts ------- > --- POWER (1) -------- (None) > --- PROPULSION (3) --- (None) > --- UTILITY (3) ------ Medium Storage Unit > --- WEAPON (2) ------- (None) > --- INVENTORY (10) --- Improved Heat Sink Small Matter Pod (0) Peak State ------------ > --- POWER ------------ Ion Engine > --- PROPULSION ------- Aluminum Leg Aluminum Leg > --- UTILITY ---------- Improved Heat Sink Medium Storage Unit > --- WEAPON ----------- EM Pulse Gun Grenade Launcher > --- INVENTORY -------- (None) [Rating: 9] Favorites ----------- Power Ion Engine Engine Ion Engine Propulsion Aluminum Leg Leg Aluminum Leg Utility Medium Storage Unit Device Improved Heat Sink Storage Medium Storage Unit Weapon EM Pulse Gun Energy Gun EM Pulse Gun Launcher Grenade Launcher Special Weapon Plasma Cutter Build | -11 -10 -9 ------- Run | Yrd Mat Mat Slots Evolved 2 | . . 2 Power . | . . . Propulsion 1 | . . 1 Utility 1 | . . 1 Weapon . | . . . Parts Attached 8 | 3 3 2 Power 1 | 1 . . Engine 1 | 1 . . Core . | . . . Reactor . | . . . Propulsion 2 | 2 . . Treads . | . . . Leg 2 | 2 . . Wheel . | . . . Hover . | . . . Flight . | . . . Utility 2 | . 1 1 Device 1 | . . 1 Storage 1 | . 1 . Processor . | . . . Hackware . | . . . Protection . | . . . Artifact . | . . . Weapon 3 | . 2 1 Energy Gun 1 | . 1 . Energy Cannon . | . . . Ballistic Gun . | . . . Ballistic Cannon . | . . . Launcher 1 | . 1 . Special Weapon 1 | . . 1 Impact Weapon . | . . . Slashing Weapon . | . . . Piercing Weapon . | . . . Special Melee Weapon . | . . . Unidentified Prototypes . | . . . Parts Lost 6 | . . 6 Power 1 | . . 1 Propulsion 2 | . . 2 Utility . | . . . Weapon 3 | . . 3 Highest Loss Streak 4 | . . 4 To Critical Strikes . | . . . Average Backups . | . . 1 Power . | . . . Propulsion . | . . . Utility . | . . 1 Weapon . | . . . Tool/Special . | . . . Unused Backups 1 | . . 1 Power . | . . . Propulsion . | . . . Utility 1 | . . 1 Weapon . | . . . Tool/Special . | . . . Average Slot Usage (%) 57 | . 67 48 Engine 10 | . 14 8 Leg 22 | . 28 17 Storage 8 | . 5 11 Energy Gun 8 | . 14 3 Launcher 4 | . 5 3 Special Weapon 2 | . . 4 Peak Build Rating 9 | 3 6 9 Average Rating 3 | 2 4 4 On Entrance 3 | . 3 6 Naked Turns . | . . . Heaviest Build 20 | 5 20 20 Greatest Support 20 | 20 20 20 Greatest Overweight (x) 3 | . . 3 Average Overweight (x) . | . . . Largest Inventory Capacity 10 | 5 10 10 Average Capacity 6 | 5 6 10 Most Carried 3 | 3 2 3 Average Carried 1 | . . 1 Final Capacity 10 | 5 10 10 Final Carried 2 | 1 1 2 Class Distribution -------------------- 100% | Mutant Dominant Class ---------------- Mutant | -10/Materials Mutant | -9/Materials Resources | -11 -10 -9 ----------- Run | Yrd Mat Mat Matter Collected 282 | 150 114 18 Remotely . | . . . Salvage Created 168 | . 150 18 Parts 7 | . 7 . Haulers Intercepted . | . . . Recyclers Shooed . | . . . Parts Field Recycled . | . . . Retrieved Matter . | . . . Parts Self-Destructed . | . . . Prevented . | . . . Kills | -11 -10 -9 ------- Run | Yrd Mat Mat Combat Hostiles Destroyed 6 | . 4 2 Melee 1 | . . 1 Guns 2 | . 2 . Cannons 1 | . . 1 AOE 2 | . 2 . Classes Destroyed 3 | . 2 1 Operator 1 | . 1 . Grunt 5 | . 4 1 Sentry 1 | . . 1 Best Kill Streak 2 | . 2 1 Combat Bots Only 2 | . 2 1 Max Kills in Single Turn 1 | . 1 1 Gunslinging . | . . . Exploded 1 | . 1 . Melee 1 | . . 1 Uniques/NPCs Destroyed . | . . . Combat | -11 -10 -9 -------- Run | Yrd Mat Mat Hostile Shots Fired 116 | . 17 99 Missed 34 | . 7 27 Hits 82 | . 10 72 Projectile 82 | . 10 72 Critical Strikes 1 | . . 1 Damage Taken 954 | . 153 801 Core 454 | . 53 401 Absorbed by Shields . | . . . Core Remaining (%) 89 | 100 78 . Volleys Fired 38 | . 20 18 Largest 1 | . 1 1 Hottest 40 | . 40 30 Shots Fired 38 | . 20 18 Gun 15 | . 15 . Cannon . | . . . Launcher 9 | . 5 4 Special 14 | . . 14 Kinetic . | . . . Thermal 14 | . . 14 Explosive 9 | . 5 4 Electromagnetic 15 | . 15 . Robot Hit Streak 6 | . 3 6 Robot Miss Streak 3 | . 3 2 Penetration Max . | . . . Secondary Targets . | . . . Shots Hit Robots 20 | . 8 12 Core Hits 19 | . 10 9 Critical Kills . | . . . Critical Parts Destroyed . | . . . Critical Strikes . | . . . Melee Attacks . | . . . Impact . | . . . Slashing . | . . . Piercing . | . . . Sneak Attacks . | . . . Combat Hostiles . | . . . Follow-up Attacks . | . . . Damage Inflicted 499 | . 286 213 Guns 109 | . 109 . Cannons . | . . . Explosions 263 | . 177 86 Melee . | . . . Ramming 41 | . . 41 Kinetic . | . . . Thermal 86 | . . 86 Explosive 263 | . 177 86 Electromagnetic 109 | . 109 . Impact . | . . . Slashing . | . . . Piercing . | . . . Highest Corruption . | . . . Average Corruption . | . . . Corruption Purged . | . . . Corruption Blocked . | . . . Overload Shots . | . . . Overflow Damage 1 | . . 1 Projectiles . | . . . Explosions 1 | . . 1 Melee . | . . . Knockbacks . | . . . Impact . | . . . Kinetic . | . . . Secondary . | . . . Self-Inflicted Damage 73 | . 32 41 Shots 4 | . 1 3 Rammed . | . . . Targets Rammed 15 | . . 15 Kicked 15 | . . 15 Crushed . | . . . Highest Temperature 36 | . 36 1 Average Temperature 18 | . 19 1 Received Heat Transfer 321 | . 66 255 Siege Activations . | . . . Martial Activations . | . . . Shielding Activations . | . . . Robots Disrupted . | . . . Combat Hostiles . | . . . Robots Corrupted . | . . . Combat Hostiles . | . . . Parts Fried 3 | . 3 . Impact Corruptions . | . . . Robots Melted . | . . . Combat Hostiles . | . . . Parts Melted . | . . . Heat Transferred 296 | . . 296 Parts Sabotaged . | . . . Parts Stolen . | . . . Parts Stripped . | . . . Power Chain Reactions . | . . . Alert | -11 -10 -9 ------- Run | Yrd Mat Mat Maximum Alert Level . | . . . Low Security (%) 100 | 100 100 100 Level 1 . | . . . Level 2 . | . . . Level 3 . | . . . Level 4 . | . . . Level 5 . | . . . High Security . | . . . Max Security . | . . . Peak Influence 85 | . 85 45 Initial 31 | . . 31 Average 8 | . 24 21 Influence Increases 224 | . 130 94 Destroy 0b10 Robot/C 120 | . 80 40 Destroy 0b10 Robot/NC 5 | . 5 . Destroy Leader 30 | . 20 10 Disable Machine 30 | . . 30 Destroy Structure 39 | . 25 14 Influence Decreases 224 | . 55 169 Entered New Map 44 | . . 44 Time Decay 135 | . 55 80 Lost Part 45 | . . 45 Squads Dispatched 2 | . 1 1 Investigation . | . . . Extermination . | . . . Reinforcement 2 | . 1 1 Assault . | . . . Garrison . | . . . Intercept . | . . . Searches Triggered . | . . . Construction Impeded . | . . . Haulers Reinforced . | . . . Active Scanning Responses . | . . . Cargo Convoy Interrupts . | . . . Stealth | -11 -10 -9 --------- Run | Yrd Mat Mat Distress Signals 1 | . . 1 Communications Jammed . | . . . Distress Signals . | . . . Times Spotted 14 | . 5 9 Peak Tracking Total 6 | . 2 6 Tactical Retreats . | . . . Traps | -11 -10 -9 ------- Run | Yrd Mat Mat Traps Triggered . | . . . Indirectly . | . . . Trap Hack Attempts . | . . . Triggered . | . . . Disarmed . | . . . Reprogrammed . | . . . Reused . | . . . Traps Extracted . | . . . Installed . | . . . Triggered . | . . . Machines | -11 -10 -9 ---------- Run | Yrd Mat Mat Machines Disabled 2 | . . 2 Max in Single Turn 1 | . . 1 Machines Repaired . | . . . Machines Dismantled . | . . . Machines Sabotaged . | . . . Overloaded Fab Kills . | . . . Hacking | -11 -10 -9 --------- Run | Yrd Mat Mat Machines Accessed . | . . . Terminals . | . . . Fabricators . | . . . Repair Stations . | . . . Recycling Units . | . . . Scanalyzers . | . . . Garrison Access . | . . . Total Hacks . | . . . Successful . | . . . Failed . | . . . Catastrophic . | . . . Database Lockouts . | . . . Manual . | . . . Terminals . | . . . Fabricators . | . . . Repair Stations . | . . . Recycling Units . | . . . Scanalyzers . | . . . Garrison Access . | . . . Terminal Hacks . | . . . Fabricator Hacks . | . . . Repair Station Hacks . | . . . Recycling Unit Hacks . | . . . Scanalyzer . | . . . Garrison Access Hacks . | . . . Unauthorized Hacks . | . . . Terminals . | . . . Fabricators . | . . . Repair Stations . | . . . Recycling Units . | . . . Scanalyzers . | . . . Garrison Access . | . . . Data Cores Recovered . | . . . Used . | . . . Hacking Detections . | . . . Full Trace Events . | . . . Feedback Events . | . . . Feedback Blocked . | . . . Robot Schematics Acquired . | . . . Robots Built . | . . . Authchips . | . . . Time . | . . . Total Robot Build Rating . | . . . Part Schematics Acquired . | . . . Parts Built . | . . . Authchips . | . . . Time . | . . . Total Part Build Rating . | . . . Parts Repaired . | . . . Time . | . . . Parts Recycled . | . . . Recycled Matter . | . . . Retrieved Matter . | . . . Retrieved Components . | . . . Parts Scanalyzed . | . . . Part Schematics Acquired . | . . . Parts Damaged . | . . . Bothacking | -11 -10 -9 ------------ Run | Yrd Mat Mat Used RIF Installer . | . . . Robots Hacked . | . . . Non-combat . | . . . Combat . | . . . Robot Hacks Applied . | . . . Relay Couplers Released . | . . . Fabnet Peak Effective % . | . . . Robots Rewired . | . . . Allies Hacked . | . . . Hacks Repelled . | . . . Allies | -11 -10 -9 -------- Run | Yrd Mat Mat Total Allies . | . . . Largest Group . | . . . Highest-Rated Group . | . . . Highest-Rated Ally . | . . . Total Orders . | . . . Ally Attacks . | . . . Total Damage . | . . . Kills . | . . . Allies Corrupted . | . . . Allies Melted . | . . . Intel | -11 -10 -9 ------- Run | Yrd Mat Mat Active Infowar (turns) . | . . . Robot Analysis Total . | . . . Derelict Logs Recovered . | . . . Drone Launches . | . . . Drone Recoveries . | . . . Exploration | -11 -10 -9 ------------- Run | Yrd Mat Mat Turns Passed 1100 | 696 194 210 Spaces Moved 392 | 192 124 76 Core 18 | 10 . 8 Treads . | . . . Legs 374 | 182 124 68 Wheels . | . . . Hover . | . . . Flight . | . . . Fastest Speed 50 | 50 120 120 Average Speed 119 | 116 120 128 Slowest Speed 200 | 120 120 200 Overloaded Moves . | . . . Propulsion Burnouts . | . . . Robots Hopped . | . . . Potential Cave-ins . | . . . Cave-ins Triggered . | . . . Exploration Rate (%) 21 | 26 25 12 Regions Visited 2 Branch Regions . Pre-discovered Areas . | . . . Known Exits Taken . | . . . Unknown Exits Taken 2 | 1 1 . Scrap Searched . | . . . Spaces Dug . | . . . Terrain Destroyed 57 | . 43 14 Melee . | . . . Projectile . | . . . AOE 57 | . 43 14 Terrain Rammed . | . . . Walls Destroyed . | . . . Machines Disabled . | . . . Actions | -11 -10 -9 --------- Run | Yrd Mat Mat Total 959 | 664 149 146 Wait 494 | 466 . 28 Move 390 | 191 123 76 Hop . | . . . Pick Up 9 | 4 3 2 Fast Attach . | . . . Attach 8 | 3 3 2 Detach 1 | . . 1 Swap . | . . . Drop . | . . . Fire 38 | . 20 18 Melee . | . . . Ram . | . . . Kick 15 | . . 15 Crush . | . . . Escape Stasis . | . . . Rewire . | . . . Trap . | . . . Miscellaneous 4 | . . 4 Route ------- -11/Scrapyard -10/Materials -9/Materials History --------- Turn | Location | Event 3 | -11/Scrapyard | Discovered new exit (range 15) 697 | -11/Scrapyard | Entered Materials 718 | -10/Materials | Build established: Mutant 848 | -10/Materials | Discovered new exit (range 3) 891 | -10/Materials | Entered another Materials area 891 | -9/Materials | Evolved 2 slots: Propulsion x1, Utility x1 1083 | -9/Materials | Core integrity fell below 50% 1095 | -9/Materials | Core integrity fell below 20% 1100 | -9/Materials | Lost 4 parts (1p2n1w) 1101 | -9/Materials | Destroyed by S-10 Pest with Light Assault Rifle Last Messages --------------- Kicked G-34 Mercenary. Kicked G-34 Mercenary out of the way. G-34 Mercenary overheating. G-34 Mercenary heat damages Heat Sink, Sml. Laser, Aluminum Leg, Aluminum Leg. Kicked G-34 Mercenary. G-34 Mercenary overheating. Kicked G-34 Mercenary. G-34 Mercenary overheating. Kicked G-34 Mercenary. G-34 Mercenary destroyed. Aluminum Leg destroyed. K-01 Serf collects debris. O-16 Technician sends out distress signal. O-16 Technician: "IFF HANDSHAKE FAILED. SECURING TERMINAL." K-01 Serf collects debris. ALERT: Hostiles spotted, dispatching reinforcements to Terminal M008. K-01 Serf collects debris. Map ----- +----------------------------------------------------+ | ???????????????????????## " # # # | | ??????????????????????### S # # "T" # | | ????????????????# ## # ######## | | ???????????????????""" # # #??????? | | ???????????????????""" ## """ # #??????? | | ???????????????????""" ## """ # #??????? | | ???????????????????????## """ + #??????? | | ????????????????????????# # #??????? | | ????????????????????????# # #??????? | | ????????????????????????##/###### ##?????? | | ????????????????????????## ##### #?????? | | ????????????????????????# #?????? | | ??????????????????? + #?????? | | ??????????????# # """ #?????? | | ??????????????# # g """ #?????? | | ??????????????# ?# """ ####?????? | | ??????????????# ??# u #????????? | | ??????????????#######???# ##? "????? | | ????????????????????????# m """ # ""???? | | ????????????????????????# """ + "????? | | ????????????????????????# """ #???????? | | ????????????????????????# #???????? | | ????????????????????????# #???????? | | ????????????????????????# s """ #???????? | | ????????????????????????#ss """ #???????? | | ????????????????????????#@ """ #???????? | | ????????????????????????#s #???????? | | ????????????????????????# #???????? | | ????????????????????????# #####+##???????? | | ????????????????????????# k #??????????????? | | ????????????????????????# #??????????????? | | ????????????????????????# k#??????????????? | | ????????????????????????# #??????????????? | | ????????????????????????# #??????????????? | | ????????????????????????# #??????????????? | | ????????????????????????# #??????????????? | | ????????????????????????# #??????????????? | | ????????????????????????? #??????????????? | | ????????????????????????? +??????????????? | | ????????????????????????? #??????????????? | | ????????????????????????? ???????????????? | | ???????????????????????????????????????????? | | ???????????????????????????????????????????? | | ???????????????????????????????????????????? | | ???????????????????????????????????????????? | | ???????????????????????????????????????????? | | ???????????????????????????????????????????? | | ???????????????????????????????????????????? | | ???????????????????????????????????????????? | | ???????????????????????????????????????????? | +----------------------------------------------------+ Best States ------------- Heat Dissipation 28 Energy Generation 10 Energy Capacity 250 Matter Stores 296 Matter Capacity 300 Sight Range 16 Terrain Scan Density 10 Evasion (%) 55 Item Schematics ----------------- None Robot Schematics ------------------ None Fabricated ------------ Nothing Repaired ---------- Nothing Alien Tech Used ----------------- None Achievements -------------- None Challenges ------------ None Game ------ Seed DefenseDefenseExtrapolator Manual? 0 Play Time 00:08:03 Cumulative 22.0 hours Start 2025.07.27 @ 03:29:42 End 2025.07.27 @ 15:57:52 Sessions 2 Manual Loads 0 Difficulty Rogue Special Mode None Game No. 29 Rogue 2 Adventurer 27 Explorer 0 Win Type - Total 0 Types 0/0/0/0/0/0/0/0/0/0 Lore% 10 Gallery% 26 Achievement% 27 Wizard Run 0 Options --------- Layout 1 ASCII 0 Keyboard 0 Movement Mouse Keybinds 0 Fullscreen 1 Font 24/Smallcaps Map View 50x35 Zoom Use 0% Tactical HUD 0 Map Filters NONE Filters NONE Steam 1 RUN: 02e6b9b6-0d38-45d4-81a0-a64e0dc48381